bitfinex-derivatives/quotes_SOLF0:USTF0_20250509
["timestamp","ask_amount","ask_price","bid_price","bid_amount"]
[1746783878305,6.0327,165.78,165.74,1.0]
[1746783878504,337.0,165.83,165.74,1.0]
[1746783880001,6.0327,165.77,165.74,1.0]
[1746783880304,6.0324,165.78,165.74,7.0335]
[1746783880506,337.0,165.83,165.74,1.0]
[1746783880900,337.0,165.83,165.74,7.0337]
[1746783881407,6.0325,165.78,165.74,7.0337]
[1746783881606,337.0,165.83,165.74,1.0]
[1746783883406,6.0329,165.77,165.74,1.0]
[1746783883705,6.0329,165.77,165.74,7.0336]
[1746783884206,6.0332,165.76,165.74,1.0]
[1746783884405,337.0,165.83,165.74,1.0]
[1746783885108,6.0329,165.77,165.74,7.0336]
[1746783885806,6.0331,165.76,165.74,7.0336]
[1746783886106,337.0,165.83,165.74,1.0]
[1746783886407,6.0334,165.75,165.74,1.0]
[1746783888306,6.0332,165.76,165.74,1.0]
[1746783888605,337.0,165.83,165.74,1.0]
[1746783888806,337.0,165.83,165.74,7.0335]
[1746783889107,6.0331,165.76,165.74,1.0]
[1746783889303,337.0,165.83,165.74,7.0338]
[1746783889701,337.0,165.83,165.74,1.0]
[1746783890305,337.0,165.83,165.74,7.0337]
[1746783890610,337.0,165.83,165.74,1.0]
[1746783890809,337.0,165.83,165.75,6.0333]
[1746783891015,337.0,165.83,165.74,1.0]
[1746783891308,6.0324,165.78,165.74,1.0]
[1746783891516,6.0324,165.78,165.75,6.0333]
[1746783891714,6.0322,165.79,165.74,1.0]
[1746783892008,337.0,165.83,165.74,1.0]
[1746783893002,6.0326,165.78,165.74,1.0]
[1746783893406,6.0326,165.78,165.75,6.0332]
[1746783894113,337.0,165.83,165.75,6.0332]
[1746783894309,337.0,165.83,165.74,7.0337]
[1746783894609,337.0,165.83,165.74,1.0]
[1746783895111,337.0,165.83,165.75,67.2513622]
[1746783895412,3.9818,165.87,165.76,2.0615]
[1746783895614,3.9818,165.87,165.76,3.933]
[1746783896410,3.9818,165.87,165.8,6.0316]
[1746783896411,6.0306,165.83,165.8,6.0316]
[1746783896715,3.9818,165.87,165.76,3.933]
[1746783897018,6.0313,165.81,165.76,3.933]
[1746783897515,6.0313,165.81,165.79,6.0319]
[1746783897814,6.0311,165.82,165.79,6.0319]
[1746783898309,3.9818,165.87,165.79,6.0319]
[1746783898708,3.9818,165.87,165.76,2.0615]
[1746783899211,6.0314,165.81,165.78,6.0322]
[1746783900117,3.9818,165.87,165.76,2.0615]
[1746783900617,6.0307,165.83,165.8,6.0314]
[1746783900916,3.9818,165.87,165.76,2.0615]
[1746783901115,6.0303,165.84,165.76,2.0615]
[1746783901316,3.9818,165.87,165.76,2.0615]
[1746783901713,6.0304,165.84,165.76,2.0615]
[1746783901915,3.9818,165.87,165.76,2.0615]
[1746783902112,3.9818,165.87,165.77,2.46792215]
[1746783902318,337.0708,165.91,165.79,10.4414622]
[1746783902513,337.0,165.91,165.8,2.46792215]
[1746783902715,337.0,165.91,165.81,2.46792215]
[1746783902917,337.0,165.91,165.82,2.46792215]
[1746783903116,337.0,165.91,165.83,2.46792215]
[1746783903307,337.0,165.91,165.84,2.46792215]
[1746783903512,337.0,165.91,165.85,2.46792215]
[1746783903711,337.0,165.91,165.86,2.46792215]
[1746783903913,337.0,165.91,165.84,6.0301]
[1746783904112,337.0,165.91,165.85,2.47418841]
[1746783904320,337.0,165.91,165.86,2.47418841]
[1746783904620,337.0,165.91,165.8,479.661]
[1746783904918,337.0,165.91,165.81,2.47497669]
[1746783905214,0.0682,165.9,165.82,2.47497669]
[1746783905413,0.0682,165.9,165.8,477.76]
[1746783905719,0.0682,165.9,165.81,2.46943114]
[1746783905918,0.0682,165.9,165.82,2.46943114]
[1746783906215,0.0682,165.9,165.83,8.49983114]
[1746783906519,0.0682,165.9,165.8,477.76]
[1746783906715,0.0682,165.9,165.81,2.46656147]
[1746783906920,0.0682,165.9,165.82,2.46656147]
[1746783907219,54.36,165.95,165.83,2.46661798]
[1746783907415,4.0276,165.96,165.84,2.46661798]
[1746783907615,4.0276,165.96,165.85,2.46661798]
[1746783907817,4.0276,165.96,165.86,8.49581798]
[1746783908015,4.0276,165.96,165.82,54.36]
[1746783908215,4.0276,165.96,165.83,2.46079837]
[1746783908420,4.0276,165.96,165.84,2.46079837]
[1746783908720,4.0276,165.96,165.85,2.46079837]
[1746783909016,4.0276,165.96,165.86,2.46079837]
[1746783909211,4.0276,165.96,165.83,2.0609]
[1746783909414,4.0276,165.96,165.84,2.46485926]
[1746783909615,10.4414622,165.94,165.8,477.76]
[1746783909815,10.4414622,165.94,165.81,2.46685982]
[1746783910015,10.4414622,165.94,165.8,477.76]
[1746783910316,10.4414622,165.94,165.81,2.46707344]
[1746783910515,12.055,165.92,165.8,477.76]
[1746783910818,10.4414622,165.94,165.81,2.4672765]
[1746783911017,10.4414622,165.9,165.8,477.76]
[1746783911224,395.3639,165.89,165.76,6.033]
[1746783911415,395.3639,165.89,165.77,2.46475423]
[1746783911721,395.3639,165.89,165.78,2.46475423]
[1746783912019,10.4414622,165.86,165.75,2.0357]
[1746783912214,6.0331,165.76,165.74,1.0]
[1746783912420,337.0,165.85,165.75,2.46501989]
[1746783912619,337.0,165.85,165.76,2.46547559]
[1746783912919,337.0,165.85,165.74,1.0]
[1746783913119,337.0,165.85,165.75,2.46122249]
[1746783913316,337.0,165.85,165.76,2.46122249]
[1746783913517,337.0,165.85,165.77,2.46122249]
[1746783913720,337.0,165.85,165.74,1.0]
[1746783913920,337.0,165.85,165.75,2.46178177]
[1746783914116,337.0,165.85,165.74,1.0]
[1746783914117,337.0,165.85,165.76,2.46186036]
[1746783914322,337.0,165.85,165.77,2.46186036]
[1746783914621,337.0,165.85,165.74,1.0]
[1746783914821,6.0318,165.8,165.75,2.46212902]
[1746783915122,337.0,165.85,165.76,2.46212902]
[1746783915321,337.0,165.85,165.77,2.46212902]
[1746783915522,337.0,165.85,165.74,1.0]
[1746783915718,337.0,165.85,165.75,2.46737638]
[1746783915926,6.0326,165.78,165.76,2.46737638]
[1746783916124,6.0326,165.78,165.77,2.46841779]
[1746783916326,337.0,165.85,165.74,1.0]
[1746783916523,337.0,165.84,165.75,2.46853907]
[1746783916723,337.0,165.84,165.76,2.46853907]
[1746783916922,337.0,165.84,165.77,2.46853907]
[1746783917224,337.0,165.84,165.74,1.0]
[1746783917427,337.0,165.84,165.75,2.4627732]
[1746783917721,337.0,165.84,165.76,2.46285916]
[1746783917923,337.0,165.84,165.77,2.46285916]
[1746783918122,337.0,165.84,165.78,2.46285916]
[1746783918327,337.0,165.84,165.74,1.0]
[1746783918626,337.0,165.84,165.75,2.46607479]
[1746783918824,337.0,165.84,165.76,2.46607479]
[1746783919021,337.0,165.84,165.77,2.46607479]
[1746783919224,337.0,165.84,165.78,2.46607479]
[1746783919524,337.0,165.84,165.79,2.46607479]
[1746783919728,4.0763,165.89,165.8,2.47183687]
[1746783919926,4.0763,165.89,165.81,2.47183687]
[1746783920123,4.0763,165.89,165.82,2.47183687]
[1746783920324,6.0319,165.8,165.76,2.0517]
[1746783920524,6.0319,165.8,165.77,2.48031091]
[1746783920718,6.0319,165.8,165.76,2.0517]
[1746783920719,6.0319,165.8,165.78,2.48031091]
[1746783920918,6.0319,165.8,165.79,2.48061243]
[1746783921422,6.0313,165.81,165.79,2.48061243]
[1746783921627,337.0,165.88,165.76,2.0517]
[1746783921831,337.0,165.87,165.77,2.48067818]
[1746783922026,6.0315,165.81,165.78,2.48067818]
[1746783922325,337.0,165.87,165.79,2.48067818]
[1746783922527,6.0317,165.8,165.76,6.0328]
[1746783922730,6.0317,165.8,165.77,2.47824572]
[1746783922929,6.0317,165.8,165.78,2.47824572]
[1746783923129,6.0317,165.8,165.79,2.47824572]
[1746783924728,6.0317,165.8,165.79,2.47973553]
[1746783925026,337.0691,165.86,165.79,2.47973553]
[1746783925222,337.0691,165.86,165.75,1.9495]
[1746783925423,337.0691,165.86,165.76,2.47999328]
[1746783925631,6.0315,165.81,165.77,8.51259328]
[1746783925830,6.0315,165.81,165.78,2.47999328]
[1746783926031,337.0691,165.86,165.79,2.47999328]
[1746783926233,337.0691,165.86,165.77,6.0326]
[1746783926528,337.0691,165.86,165.79,1.0]
[1746783926930,6.0316,165.8,165.79,1.0]
[1746783927124,6.0316,165.8,165.79,3.4845118]
[1746783928333,6.0311,165.82,165.79,9.51381857]
[1746783928529,337.0,165.86,165.8,2.48191857]
[1746783928725,337.0,165.86,165.79,1.0]
[1746783928930,337.0,165.86,165.8,2.48309383]
[1746783929125,337.0,165.86,165.81,2.48309383]
[1746783929326,337.0,165.86,165.82,2.48309383]
[1746783929631,6.0308,165.83,165.8,6.0315]
[1746783929825,6.0308,165.83,165.81,2.48546357]
[1746783930026,6.0308,165.83,165.82,2.48571906]
[1746783930633,6.0309,165.82,165.8,6.0315]
[1746783931738,4.0763,165.89,165.79,1.0]
[1746783932127,337.0,165.9,165.79,1.0]
[1746783932329,6.0294,165.87,165.8,1.8874]
[1746783932626,337.0,165.9,165.8,1.8874]
[1746783932823,1.8693,165.93,165.8,12.3288622]
[1746783933230,1.9315,165.96,165.8,12.3288622]
[1746783935432,1.9315,165.96,165.85,6.0296]
[1746783936044,6.0286,165.89,165.86,6.0294]
[1746783936230,1.9315,165.96,165.81,477.68]
[1746783936636,6.0286,165.89,165.85,6.0297]
[1746783936833,1.9315,165.96,165.82,1.8593]
[1746783937138,6.0286,165.89,165.85,6.0295]
[1746783937436,1.9315,165.96,165.82,1.8593]
[1746783937637,6.0283,165.9,165.86,6.0291]
[1746783937933,1.9315,165.96,165.86,6.0291]
[1746783938137,1.9315,165.96,165.85,6.0297]
[1746783938737,6.0287,165.88,165.85,6.0297]
[1746783939536,6.0285,165.89,165.86,6.0294]
[1746783940039,6.0285,165.89,165.83,1.9725]
[1746783940040,6.0281,165.9,165.87,6.029]
[1746783940233,1.9315,165.96,165.83,1.9725]
[1746783941141,6.0278,165.91,165.88,6.0285]
[1746783941342,1.9315,165.96,165.85,53.18]
[1746783941544,1.9315,165.96,165.87,6.0289]
[1746783942642,1.9315,165.96,165.85,53.18]
[1746783942643,1.9315,165.96,165.88,6.0286]
[1746783943144,1.9315,165.96,165.87,6.0289]
[1746783943542,6.0276,165.91,165.85,53.18]
[1746783943845,1.9315,165.96,165.85,53.18]
[1746783944038,6.0277,165.91,165.85,53.18]
[1746783944237,6.0277,165.91,165.88,6.0285]
[1746783944441,10.4414622,165.99,165.85,53.18]
[1746783944638,337.0669,166.01,165.85,53.18]
[1746783944838,337.0,166.01,165.85,53.18]
[1746783945241,6.0255,165.97,165.94,6.0263]
[1746783945736,6.0255,165.97,165.89,3.9489]
[1746783945941,337.0,166.01,165.9,2.0384]
[1746783945942,6.0252,165.98,165.9,2.0384]
[1746783946141,337.0,166.01,165.9,2.0384]
[1746783946346,337.0,166.01,165.94,6.0263]
[1746783946648,6.0256,165.97,165.94,6.0263]
[1746783946943,3.877,166.02,165.95,6.0261]
[1746783947242,3.877,166.02,165.9,2.0384]
[1746783947945,6.0257,165.97,165.94,6.0265]
[1746783948144,3.877,166.02,165.9,2.0384]
[1746783948550,6.0258,165.96,165.9,2.0384]
[1746783948749,3.877,166.02,165.9,2.0384]
[1746783949052,6.0249,165.99,165.96,6.0256]
[1746783949344,337.0,166.05,165.92,63.3014622]
[1746783949551,6.0248,165.99,165.96,6.0254]
[1746783950146,6.0243,166.01,165.92,63.3014622]
[1746783950452,337.0,166.05,165.92,63.3014622]
[1746783950643,1.8757,166.07,165.92,63.3014622]
[1746783951439,6.0234,166.03,166.0,6.0241]
[1746783951643,6.0234,166.03,165.92,63.3014622]
[1746783951848,6.0234,166.03,165.96,10.4414622]
[1746783952053,6.023,166.04,165.97,5.8609]
[1746783952548,2.0018,166.09,165.97,5.8609]
[1746783952746,6.0235,166.03,165.97,5.8609]
[1746783952946,2.0018,166.09,165.97,5.8609]
[1746783953747,6.0231,166.04,166.01,6.0238]
[1746783953955,6.0231,166.04,165.97,5.8609]
[1746783954254,2.0018,166.09,165.97,5.8609]
[1746783955153,2.0018,166.09,166.0,6.024]
[1746783955457,2.0018,166.09,165.97,5.8609]
[1746783955955,337.0,166.1,165.97,5.8609]
[1746783956357,6.0223,166.06,166.03,6.0232]
[1746783956758,337.0,166.1,165.99,52.58]
[1746783956958,6.0228,166.05,166.02,6.0234]
[1746783957158,337.0,166.1,166.02,6.0234]
[1746783957757,337.0,166.1,165.99,52.58]
[1746783958153,6.0224,166.06,165.99,52.58]
[1746783958459,337.0,166.1,165.99,52.58]
[1746783958661,6.0217,166.08,165.99,52.58]
[1746783959160,6.0217,166.08,166.05,6.0224]
[1746783959861,6.0219,166.07,166.05,6.0224]
[1746783960461,6.0219,166.07,166.04,6.0227]
[1746783960861,6.0219,166.07,165.99,52.58]
[1746783961056,6.0216,166.08,166.05,6.0223]
[1746783961255,6.0216,166.08,165.99,52.58]
[1746783961256,338.955,166.15,166.01,477.18]
[1746783961456,338.955,166.15,166.02,10.4414622]
[1746783961761,6.0206,166.11,166.08,6.0214]
[1746783961960,338.955,166.15,166.02,10.4414622]
[1746783962265,6.0206,166.11,166.02,10.4414622]
[1746783962468,338.955,166.15,166.02,10.4414622]
[1746783963064,6.0209,166.1,166.07,6.0216]
[1746783963266,338.955,166.15,166.02,10.4414622]
[1746783963765,6.0216,166.08,166.05,6.0223]
[1746783963964,338.955,166.15,166.02,6.52774791]
[1746783964369,338.955,166.15,166.05,6.52774791]
[1746783964672,6.0203,166.12,166.08,6.0211]
[1746783964962,1.955,166.15,166.08,6.0211]
[1746783965168,6.0206,166.11,166.08,6.0211]
[1746783966762,1.9309,166.17,166.06,2.0022]
[1746783966968,349.0325,166.23,166.07,10.44059888]
[1746783967164,351.0263,166.23,166.07,10.44059888]
[1746783967376,6.018,166.18,166.07,10.44059888]
[1746783967665,338.9938,166.23,166.07,10.44059888]
[1746783967867,337.0,166.23,166.16,6.0185]
[1746783968169,2.0064,166.24,166.13,52.16]
[1746783968369,1.9938,166.27,166.18,6.0175]
[1746783968558,1.9938,166.27,166.14,56.0196]
[1746783968866,6.017,166.21,166.17,6.018]
[1746783969067,1.9938,166.27,166.17,6.018]
[1746783969268,1.9938,166.27,166.14,56.0196]
[1746783969661,6.0181,166.18,166.14,56.0196]
[1746783969857,1.9938,166.27,166.14,56.0196]
[1746783970065,337.0,166.26,166.14,56.0196]
[1746783970262,337.0,166.26,166.14,2.0041]
[1746783970462,22.47129888,166.25,166.14,2.0041]
[1746783970863,0.0614,166.24,166.14,2.0041]
[1746783971167,6.0183,166.17,166.14,8.0232]
[1746783972569,6.018,166.18,166.14,2.0041]
[1746783973067,0.0614,166.24,166.14,2.0041]
[1746783973264,337.0,166.26,166.14,2.0041]
[1746783973670,337.0,166.26,166.18,6.0176]
[1746783974071,337.0,166.26,166.14,2.0041]
[1746783974773,6.0173,166.2,166.14,2.0041]
[1746783974972,337.0,166.26,166.14,2.0041]
[1746783975372,6.0168,166.21,166.18,6.0176]
[1746783976273,6.0171,166.2,166.14,2.0041]
[1746783977170,337.0,166.26,166.14,2.0041]
[1746783977578,6.0166,166.22,166.14,2.0041]
[1746783977767,337.0,166.26,166.14,2.0041]
[1746783977964,337.0,166.26,166.18,6.0175]
[1746783978877,6.0166,166.22,166.19,6.0174]
[1746783979376,6.0157,166.24,166.2,6.0169]
[1746783979572,2.0424,166.28,166.2,6.0169]
[1746783979875,2.0424,166.28,166.19,6.0171]
[1746783980075,337.0,166.3,166.17,10.44059888]
[1746783980281,337.0,166.3,166.18,53.6786]
[1746783980471,337.0,166.3,166.21,6.0165]
[1746783980778,337.0,166.3,166.18,53.6786]
[1746783982080,6.0152,166.26,166.23,6.0159]
[1746783982381,337.0,166.3,166.18,53.6786]
[1746783982773,337.0,166.3,166.23,6.0157]
[1746783982972,337.0,166.3,166.18,53.6786]
[1746783983173,337.0,166.3,166.25,6.015]
[1746783983478,3.895,166.33,166.18,53.6786]
[1746783983873,6.0148,166.27,166.24,6.0156]
[1746783984378,6.015,166.26,166.23,6.0159]
[1746783985180,6.0155,166.25,166.22,6.0163]
[1746783985377,3.895,166.33,166.18,53.6786]
[1746783985780,6.0153,166.25,166.22,6.0162]
[1746783985980,3.895,166.33,166.18,53.6786]
[1746783986476,6.0155,166.25,166.18,53.6786]
[1746783987177,6.0155,166.25,166.22,6.0162]
[1746783987372,6.0155,166.25,166.18,53.6786]
[1746783987574,6.0151,166.26,166.23,6.0159]
[1746783988784,6.0145,166.28,166.18,53.6786]
[1746783988980,3.895,166.33,166.23,1.0]
[1746783989283,6.0147,166.27,166.24,6.0155]
[1746783989683,3.895,166.33,166.23,1.0]
[1746783989880,6.0144,166.28,166.25,6.0152]
[1746783990081,10.40921706,166.33,166.25,6.0152]
[1746783990280,10.40921706,166.33,166.23,1.0]
[1746783990583,6.51421706,166.3,166.23,1.0]
[1746783990776,6.51421706,166.27,166.15,1.9812]
[1746783991081,2.0345,166.26,166.15,1.9812]
[1746783991486,6.0173,166.2,166.17,6.018]
[1746783992178,2.0345,166.26,166.16,6.0184]
[1746783992179,6.0175,166.19,166.16,6.0184]
[1746783992379,6.51421706,166.24,166.12,3.9388]
[1746783992582,6.51421706,166.24,166.12,2.0373]
[1746783992785,6.51421706,166.24,166.14,6.0191]
[1746783993182,6.0181,166.18,166.14,6.0191]
[1746783993483,6.51421706,166.24,166.14,6.0191]
[1746783993684,339.0345,166.26,166.12,2.0373]
[1746783993885,6.0175,166.19,166.12,2.0373]
[1746783994586,6.0178,166.18,166.12,2.0373]
[1746783994782,339.0345,166.26,166.14,6.019]
[1746783995081,337.0,166.25,166.14,6.019]
[1746783996188,1.9333,166.24,166.14,6.019]
[1746783996482,1.9333,166.24,166.12,2.0373]
[1746783996680,1.9333,166.24,166.11,530.2036]
[1746783996681,347.43407376,166.23,166.11,477.04]
[1746783997185,6.0189,166.16,166.11,477.04]
[1746783997380,51.1,166.21,166.11,477.04]
[1746783997582,51.1,166.21,166.13,6.0195]
[1746783997785,51.08,166.22,166.13,6.0195]
[1746783998181,6.0184,166.17,166.14,6.0192]
[1746783998384,388.06,166.23,166.11,477.04]
[1746783998785,6.0185,166.17,166.13,6.0194]
[1746783998977,388.06,166.23,166.11,477.04]
[1746783999191,6.0175,166.19,166.15,6.0188]
[1746783999486,337.0,166.23,166.12,3.8103]
[1746783999686,337.0,166.23,166.12,1.9293]
[1746783999887,6.0195,166.14,166.11,477.04]
[1746784000078,337.0,166.23,166.11,477.04]
[1746784001084,6.02,166.12,166.11,477.04]
[1746784001783,12.033,166.22,166.11,477.04]
[1746784001784,6.0198,166.13,166.11,477.04]
[1746784002189,12.033,166.22,166.11,477.04]
[1746784002389,6.0192,166.15,166.12,6.0199]
[1746784002586,62.973,166.22,166.11,477.04]
[1746784002788,6.0192,166.15,166.12,6.02]
[1746784003088,62.973,166.22,166.11,477.04]
[1746784003483,12.0335,166.21,166.11,477.04]
[1746784003886,6.0199,166.13,166.11,477.04]
[1746784004294,12.0335,166.21,166.11,477.04]
[1746784004889,6.02,166.12,166.11,477.04]
[1746784005285,12.0335,166.21,166.11,477.04]
[1746784005688,6.02,166.12,166.11,477.04]
[1746784006188,12.0335,166.21,166.11,477.04]
[1746784007587,6.02,166.12,166.11,477.04]
[1746784007992,337.0615,166.2,166.08,130.85185578]
[1746784008291,6.0206,166.11,166.08,136.87315578]
[1746784008493,338.9984,166.19,166.08,130.85185578]
[1746784008792,338.9984,166.19,166.1,6.0206]
[1746784009088,338.9984,166.19,166.08,130.85185578]
[1746784009288,6.0193,166.14,166.11,6.0201]
[1746784009990,6.0191,166.15,166.12,6.02]
[1746784010184,338.9984,166.19,166.08,130.85185578]
[1746784010584,337.0,166.19,166.1,10.43407376]
[1746784010787,337.0,166.19,166.11,1.9383]
[1746784010990,6.018,166.18,166.15,6.0188]
[1746784011392,6.0182,166.17,166.15,6.0188]
[1746784011688,12.36737376,166.24,166.08,130.85185578]
[1746784011891,337.0,166.23,166.08,181.47185578]
[1746784012083,6.0197,166.13,166.1,6.0205]
[1746784013393,6.0194,166.14,166.11,6.0202]
[1746784013693,337.0624,166.23,166.08,181.47185578]
[1746784013894,6.019,166.15,166.12,6.0198]
[1746784014083,394.0821764,166.22,166.09,6.5221764]
[1746784014487,394.0821764,166.22,166.11,6.02]
[1746784014794,394.0821764,166.22,166.08,181.47185578]
[1746784014991,6.0205,166.11,166.08,187.49305578]
[1746784015287,6.5221764,166.19,166.08,181.47185578]
[1746784016192,6.5221764,166.19,166.09,6.0209]
[1746784016393,6.5221764,166.19,166.08,181.47185578]
[1746784017089,12.0339,166.21,166.08,181.47185578]
[1746784017394,12.0339,166.21,166.09,6.5221764]
[1746784017588,337.0,166.22,166.09,6.5221764]
[1746784018196,56.9421764,166.21,166.09,6.5221764]
[1746784018489,6.0198,166.13,166.1,6.0206]
[1746784018692,12.0344,166.2,166.08,130.85185578]
[1746784019092,6.5221764,166.18,166.07,3.96]
[1746784019694,6.0206,166.11,166.08,6.0213]
[1746784020099,12.0344,166.2,166.07,10.4821764]
[1746784020295,50.36,166.21,166.1,6.5221764]
[1746784020497,337.0,166.22,166.1,6.5221764]
[1746784020893,6.0191,166.15,166.1,6.5221764]
[1746784021397,6.0191,166.15,166.12,6.0197]
[1746784021597,6.0191,166.15,166.1,6.5221764]
[1746784021896,337.0,166.22,166.07,491.21479883]
[1746784022296,6.0189,166.15,166.07,491.21479883]
[1746784022697,337.0,166.22,166.07,491.21479883]
[1746784022897,6.0184,166.17,166.07,491.21479883]
[1746784023098,6.0184,166.17,166.14,6.019]
[1746784023296,337.0,166.22,166.07,491.21479883]
[1746784023499,1.9562,166.25,166.11,10.43479883]
[1746784023695,337.0,166.28,166.12,52.1096]
[1746784023900,6.0168,166.21,166.12,52.1096]
[1746784024097,337.0,166.28,166.12,52.1096]
[1746784024289,6.016,166.23,166.15,10.43479883]
[1746784024495,337.0,166.28,166.18,6.0176]
[1746784024898,337.0,166.28,166.16,3.812]
[1746784025095,337.0,166.28,166.16,9.8304]
[1746784025303,337.0,166.28,166.12,52.1096]
[1746784025600,6.0184,166.17,166.12,52.1096]
[1746784025995,50.16,166.24,166.12,52.1096]
[1746784026195,337.0,166.23,166.12,50.24]
[1746784026390,337.0,166.23,166.09,3.7801]
[1746784026591,340.8567,166.22,166.09,3.7801]
[1746784026796,340.9191,166.22,166.08,6.0212]
[1746784027095,10.43479883,166.19,166.07,476.82]
[1746784027293,387.12,166.18,166.07,476.82]
[1746784028300,6.019,166.15,166.07,476.82]
[1746784028501,387.12,166.18,166.11,6.0201]
[1746784028701,337.0,166.18,166.07,476.82]
[1746784028901,6.0188,166.16,166.07,476.82]
[1746784029102,337.0,166.18,166.07,476.82]
[1746784029597,337.0,166.18,166.09,6.021]
[1746784029798,337.0,166.18,166.07,476.82]
[1746784030096,6.019,166.15,166.07,476.82]
[1746784030302,337.0,166.18,166.07,476.82]
[1746784030703,6.0193,166.14,166.07,476.82]
[1746784030908,337.0,166.18,166.07,476.82]
[1746784031296,3.8567,166.22,166.08,10.43479883]
[1746784031604,6.0179,166.18,166.09,1.8636]
[1746784031810,337.0,166.23,166.09,1.8636]
[1746784032101,337.0,166.23,166.16,6.0183]
[1746784032102,6.0173,166.2,166.16,6.0183]
[1746784032305,6.0173,166.2,166.12,49.96]
[1746784032608,49.94,166.26,166.13,3.8473]
[1746784032807,337.0,166.29,166.13,3.8473]
[1746784033700,6.0155,166.25,166.13,3.8473]
[1746784033896,337.0,166.29,166.13,3.8473]
[1746784034097,386.9,166.29,166.13,3.8473]
[1746784034307,386.9,166.29,166.2,6.0169]
[1746784034509,386.9,166.29,166.13,3.8473]
[1746784034709,337.0,166.28,166.13,3.8473]
[1746784035311,6.0162,166.23,166.18,6.0176]
[1746784035506,337.0,166.28,166.18,6.0176]
[1746784035911,6.0166,166.22,166.17,6.018]
[1746784036209,337.0,166.28,166.17,6.018]
[1746784036411,6.0175,166.19,166.15,6.0187]
[1746784036805,337.0,166.27,166.13,3.8473]
[1746784037011,337.0,166.26,166.16,6.0185]
[1746784038110,337.0,166.26,166.17,6.0181]
[1746784038309,337.0,166.26,166.13,3.8473]
[1746784038511,6.0162,166.23,166.13,3.8473]
[1746784038713,337.0,166.26,166.13,3.8473]
[1746784038913,6.0164,166.22,166.13,3.8473]
[1746784039111,6.0164,166.22,166.18,6.0176]
[1746784039314,337.0,166.26,166.13,3.8473]
[1746784039614,6.0156,166.25,166.19,6.0173]
[1746784039814,1.9192,166.3,166.2,1.9451]
[1746784040516,6.016,166.24,166.2,1.9451]
[1746784040910,1.9192,166.3,166.2,1.9451]
[1746784041106,6.0157,166.24,166.2,1.9451]
[1746784041416,1.9192,166.3,166.2,1.9451]
[1746784042113,1.9192,166.3,166.2,7.9622]
[1746784042418,6.0159,166.24,166.2,7.9622]
[1746784042615,1.9192,166.3,166.2,1.9451]
[1746784042819,1.9192,166.3,166.18,49.7]
[1746784043120,12.35399883,166.3,166.16,9.907]
[1746784043319,6.017,166.21,166.16,3.8887]
[1746784043916,12.35399883,166.3,166.16,3.8887]
[1746784043917,6.0174,166.2,166.16,3.8887]
[1746784044118,12.35399883,166.3,166.16,3.8887]
[1746784044314,6.0167,166.22,166.18,6.0176]
[1746784045519,6.0168,166.21,166.18,6.0176]
[1746784045713,337.0,166.29,166.19,6.0174]
[1746784045910,337.0,166.29,166.16,3.8887]
[1746784046113,6.0171,166.2,166.16,3.8887]
[1746784046318,337.0,166.29,166.16,3.8887]
[1746784046815,6.0173,166.2,166.17,6.0181]